bitfinex/quotes_BTCUSD_20250803
["timestamp","ask_amount","ask_price","bid_price","bid_amount"]
[1754262325581,5.85728087,114560.0,114550.0,0.00104]
[1754262325800,5.99208087,114560.0,114550.0,0.00104]
[1754262326027,5.33263956,114560.0,114550.0,0.00104]
[1754262326237,5.33263956,114560.0,114550.0,0.00204]
[1754262326657,5.33263956,114560.0,114550.0,0.00104]
[1754262327115,5.33263956,114560.0,114550.0,4e-05]
[1754262327443,5.33363956,114560.0,114550.0,4e-05]
[1754262328805,5.18835698,114560.0,114550.0,4e-05]
[1754262329200,5.03284572,114560.0,114550.0,4e-05]
[1754262329472,5.03192572,114560.0,114550.0,4e-05]
[1754262329678,4.95669455,114560.0,114550.0,0.03175]
[1754262330538,4.9703616,114560.0,114550.0,0.03175]
[1754262330781,4.38356158,114560.0,114550.0,0.16659]
[1754262331000,4.03538358,114560.0,114550.0,0.16659]
[1754262331216,4.38353762,114560.0,114550.0,0.16663]
[1754262331641,4.37538358,114560.0,114550.0,0.16663]
[1754262332286,4.3835384,114560.0,114550.0,0.16663]
[1754262332510,4.97033842,114560.0,114550.0,0.16663]
[1754262332992,4.3835384,114560.0,114550.0,0.16663]
[1754262333224,4.4087884,114560.0,114550.0,0.16663]
[1754262333441,0.6573614,114560.0,114550.0,0.25526284]
[1754262333653,0.99020658,114560.0,114550.0,0.25526284]
[1754262334277,0.97385057,114560.0,114550.0,0.25526284]
[1754262339266,0.99018086,114560.0,114550.0,0.25526284]
[1754262339698,0.97385057,114560.0,114550.0,0.25526284]
[1754262341383,0.99018516,114560.0,114550.0,0.25526284]
[1754262344197,0.97384473,114560.0,114550.0,0.25526284]
[1754262344406,0.99018885,114560.0,114550.0,0.25526284]
[1754262345050,0.38704471,114560.0,114550.0,0.25526284]
[1754262345462,0.97384473,114560.0,114550.0,0.25526284]
[1754262348342,1.56064475,114560.0,114550.0,0.25526284]
[1754262348517,0.97384473,114560.0,114550.0,0.25526284]
[1754262348753,0.38704471,114560.0,114550.0,0.25526284]
[1754262348927,0.97384473,114560.0,114550.0,0.25526284]
[1754262349826,0.02725,114560.0,114550.0,0.25526284]
[1754262350008,0.341,114560.0,114550.0,0.25526284]
[1754262351060,0.34,114560.0,114550.0,0.25526284]
[1754262351269,0.34,114560.0,114550.0,0.25626284]
[1754262352492,0.34,114560.0,114550.0,0.25726284]
[1754262353616,0.92680002,114560.0,114550.0,0.25726284]
[1754262354851,0.34,114560.0,114550.0,0.25726284]
[1754262355510,0.92680002,114560.0,114550.0,0.25726284]
[1754262356413,0.34,114560.0,114550.0,0.25726284]
[1754262357152,0.34,114560.0,114550.0,0.26576284]
[1754262358821,0.92680002,114560.0,114550.0,0.26576284]
[1754262360637,0.34,114560.0,114550.0,0.26576284]
[1754262360878,0.92680002,114560.0,114550.0,0.26576284]
[1754262361146,0.34,114560.0,114550.0,0.26576284]
[1754262362113,0.92680002,114560.0,114550.0,0.26576284]
[1754262364258,0.34,114560.0,114550.0,0.26576284]
[1754262365160,0.92680002,114560.0,114550.0,0.26576284]
[1754262369059,0.92680002,114560.0,114550.0,0.13088284]
[1754262369293,1.54275441,114560.0,114550.0,0.23393284]
[1754262369529,0.95595439,114560.0,114550.0,0.23393284]
[1754262369761,0.95486439,114560.0,114550.0,0.23393284]
[1754262370255,0.92680002,114560.0,114550.0,0.23393284]
[1754262370487,0.34,114560.0,114550.0,0.26023284]
[1754262370721,0.92680002,114560.0,114550.0,0.25494284]
[1754262371911,0.95304502,114560.0,114550.0,0.25494284]
[1754262372810,0.366245,114560.0,114550.0,0.25494284]
[1754262373039,0.95304502,114560.0,114550.0,0.25494284]
[1754262374750,0.95304502,114560.0,114550.0,0.22543284]
[1754262375444,0.95304502,114560.0,114550.0,0.25283284]
[1754262375648,0.95304502,114560.0,114550.0,0.22543284]
[1754262376690,0.95304502,114560.0,114550.0,0.25592284]
[1754262377592,0.98110939,114560.0,114550.0,0.22539284]
[1754262377829,1.56847941,114560.0,114550.0,0.22539284]
[1754262378045,0.98167939,114560.0,114550.0,0.22539284]
[1754262378474,0.95361502,114560.0,114550.0,0.22539284]
[1754262378680,0.95304502,114560.0,114550.0,0.22539284]
[1754262379379,0.95361502,114560.0,114550.0,0.22539284]
[1754262380468,1.54041504,114560.0,114550.0,0.09067284]
[1754262380678,1.60434036,114560.0,114550.0,0.09067284]
[1754262380887,1.60434036,114560.0,114550.0,0.13676]
[1754262381541,1.60434036,114560.0,114550.0,0.13576]
[1754262381954,1.5991919,114560.0,114550.0,0.13576]
[1754262382162,5.0106189,114560.0,114550.0,0.13476]
[1754262382600,5.04033668,114560.0,114550.0,0.13476]
[1754262385079,5.04031637,114560.0,114550.0,0.13476]
[1754262387889,5.04031228,114560.0,114550.0,0.13476]
[1754262388753,5.03213337,114560.0,114550.0,0.13476]
[1754262389846,5.04031066,114560.0,114550.0,0.13476]
[1754262390047,5.04031066,114560.0,114550.0,4e-05]
[1754262390242,5.04031066,114560.0,114550.0,0.13476]
[1754262390913,4.70031066,114560.0,114550.0,0.13476]
[1754262391719,4.70029758,114560.0,114550.0,0.13476]
[1754262392917,5.04029758,114560.0,114550.0,0.13476]
[1754262393531,5.05396395,114560.0,114550.0,0.13476]
[1754262393739,5.0539606,114560.0,114550.0,0.13476]
[1754262396421,5.04029423,114560.0,114550.0,0.13476]
[1754262396632,5.04029277,114560.0,114550.0,0.13476]
[1754262398311,5.03972277,114560.0,114550.0,0.13476]
[1754262399772,5.0533891,114560.0,114550.0,0.13476]
[1754262402497,5.05337014,114560.0,114550.0,0.13476]
[1754262405016,5.05337014,114560.0,114550.0,0.16128]
[1754262405228,5.05337014,114560.0,114550.0,0.16432]
[1754262405429,5.05337554,114560.0,114550.0,0.16432]
[1754262406729,5.07082456,114560.0,114550.0,0.13476]
[1754262408995,5.07082456,114560.0,114550.0,0.16128]
[1754262409400,5.07082456,114560.0,114550.0,0.16432]
[1754262410577,5.07082456,114560.0,114550.0,0.0296]
[1754262410813,6.10254458,114560.0,114550.0,4e-05]
[1754262411029,6.21188868,114560.0,114550.0,4e-05]
[1754262411252,5.77952235,114560.0,114550.0,0.1346]
[1754262411470,5.21158723,114560.0,114550.0,4e-05]
[1754262411674,5.88722481,114560.0,114550.0,4e-05]
[1754262412537,5.86222481,114560.0,114550.0,4e-05]
[1754262413186,5.86322481,114560.0,114550.0,4e-05]
[1754262414331,5.8768934,114560.0,114550.0,4e-05]
[1754262414554,5.9018934,114560.0,114550.0,4e-05]
[1754262414770,5.81305584,114560.0,114550.0,4e-05]
[1754262415388,5.79938725,114560.0,114550.0,4e-05]
[1754262416268,5.80038725,114560.0,114550.0,4e-05]
[1754262416485,6.37860725,114560.0,114550.0,4e-05]
[1754262417333,6.37861277,114560.0,114550.0,4e-05]
[1754262417961,6.46745033,114560.0,114550.0,4e-05]
[1754262418308,5.80548116,114560.0,114550.0,4e-05]
[1754262418510,5.67096116,114560.0,114550.0,4e-05]
[1754262419137,5.6502499,114560.0,114550.0,4e-05]
[1754262420193,5.65024941,114560.0,114550.0,4e-05]
[1754262421911,5.64902941,114560.0,114550.0,4e-05]
[1754262422158,5.62404616,114560.0,114550.0,0.03174]
[1754262422359,5.46018215,114560.0,114550.0,0.03174]
[1754262422561,5.47763117,114560.0,114550.0,0.03174]
[1754262423311,5.47762871,114560.0,114550.0,0.03174]
[1754262425705,5.4639603,114560.0,114550.0,0.03174]
[1754262429351,5.4450954,114560.0,114550.0,0.03174]
[1754262429579,5.46395096,114560.0,114550.0,0.03174]
[1754262430007,5.45876265,114560.0,114550.0,0.03174]
[1754262437109,5.01507354,114560.0,114550.0,0.03174]
[1754262437326,0.05893023,114560.0,114550.0,0.12037284]
[1754262437543,0.64573025,114560.0,114550.0,0.12037284]
[1754262437761,0.97754977,114560.0,114550.0,0.12037284]
[1754262437976,0.96118038,114560.0,114550.0,0.12037284]
[1754262438220,0.97754289,114560.0,114550.0,0.12037284]
[1754262438452,0.96118038,114560.0,114550.0,0.12037284]
[1754262439474,1.5479804,114560.0,114550.0,0.12037284]
[1754262442214,0.96118038,114560.0,114550.0,0.12037284]
[1754262442424,0.95504502,114560.0,114550.0,0.12037284]
[1754262443060,0.368245,114560.0,114550.0,0.12037284]
[1754262443277,0.95504502,114560.0,114550.0,0.12037284]
[1754262448712,0.368245,114560.0,114550.0,0.12037284]
[1754262448926,0.95504502,114560.0,114550.0,0.12037284]
[1754262454854,0.368245,114560.0,114550.0,0.12037284]
[1754262456551,0.95504502,114560.0,114550.0,0.12037284]
[1754262458110,0.368245,114560.0,114550.0,0.12037284]
[1754262458317,0.95504502,114560.0,114550.0,0.12037284]
[1754262460058,0.368245,114560.0,114550.0,0.12037284]
[1754262464174,0.368245,114560.0,114550.0,0.12255529]
[1754262464623,0.368245,114560.0,114550.0,0.89245155]
[1754262464823,0.368245,114560.0,114550.0,0.8902691]
[1754262465180,0.028245,114560.0,114550.0,0.30346908]
[1754262465553,0.02327622,114590.0,114560.0,0.17458031]
[1754262465728,0.39393784,114590.0,114570.0,0.22493491]
[1754262465874,0.39393784,114590.0,114580.0,0.03133]
[1754262466080,0.38027394,114590.0,114580.0,0.11996284]
[1754262466281,0.40651294,114590.0,114580.0,0.11996284]
[1754262466575,0.40651301,114590.0,114580.0,0.11996284]
[1754262467537,0.40751301,114590.0,114580.0,0.11996284]
[1754262467762,0.40651301,114590.0,114580.0,0.11996284]
[1754262468150,0.40851301,114590.0,114580.0,0.11996284]
[1754262468349,0.99531303,114590.0,114580.0,0.11996284]
[1754262468551,0.99431303,114590.0,114580.0,0.11996284]
[1754262468870,0.99531303,114590.0,114580.0,0.11996284]
[1754262470063,0.99531303,114590.0,114580.0,0.22275284]
[1754262470270,0.99531303,114590.0,114580.0,0.08863284]
[1754262470472,0.99531303,114590.0,114580.0,0.25216284]
[1754262472929,0.97895219,114590.0,114580.0,0.25216284]
[1754262473168,0.99528385,114590.0,114580.0,0.25216284]
[1754262473393,0.40848383,114590.0,114580.0,0.25216284]
[1754262473597,0.99528385,114590.0,114580.0,0.25412284]
[1754262474938,0.40848383,114590.0,114580.0,0.25412284]
[1754262475142,0.05069503,114590.0,114580.0,0.25412284]
[1754262475549,0.028239,114590.0,114580.0,0.25412284]
[1754262475788,0.028239,114590.0,114580.0,0.25416284]
[1754262476723,0.027239,114590.0,114580.0,0.25416284]
[1754262476926,0.026239,114590.0,114580.0,0.25516284]
[1754262477113,0.366239,114590.0,114580.0,0.25516284]
[1754262477254,0.366239,114590.0,114580.0,0.25616284]
[1754262480130,0.95303902,114590.0,114580.0,0.25616284]
[1754262480338,0.95303902,114590.0,114580.0,0.25608284]
[1754262480557,0.95915916,114590.0,114580.0,0.25608284]
[1754262480761,0.95915916,114590.0,114580.0,0.12200284]
[1754262480970,0.95915916,114590.0,114580.0,0.12004284]
[1754262481175,0.95915916,114590.0,114580.0,0.25412284]
[1754262481588,0.95915951,114590.0,114580.0,0.25412284]
[1754262481797,0.95915951,114590.0,114580.0,0.25608284]
[1754262482203,0.37235949,114590.0,114580.0,0.25608284]
[1754262482416,0.37236007,114590.0,114580.0,0.25608284]
[1754262483069,0.95303902,114590.0,114580.0,0.25608284]
[1754262483279,0.95916009,114590.0,114580.0,0.25608284]
[1754262483497,0.95303902,114590.0,114580.0,0.25608284]
[1754262483716,0.95916062,114590.0,114580.0,0.25608284]
[1754262484348,0.3723606,114590.0,114580.0,0.25608284]
[1754262484562,0.95916062,114590.0,114580.0,0.25608284]
[1754262485507,0.366239,114590.0,114580.0,0.25608284]
[1754262486184,0.366239,114590.0,114580.0,0.12200284]
[1754262486396,0.366239,114590.0,114580.0,0.25822472]
[1754262486606,0.366239,114590.0,114580.0,0.25604284]
[1754262493238,0.95303902,114590.0,114580.0,0.25604284]
[1754262493877,0.95917098,114590.0,114580.0,0.25600284]
[1754262494091,0.95917098,114590.0,114580.0,0.25404284]
[1754262496363,0.95917098,114590.0,114580.0,0.22463284]
[1754262496364,0.61323902,114590.0,114580.0,0.22463284]
[1754262496565,0.61937549,114590.0,114580.0,0.22463284]
[1754262497185,0.95937549,114590.0,114580.0,0.09067284]
[1754262497384,0.97574107,114590.0,114580.0,0.22467284]
[1754262497597,0.98392463,114590.0,114580.0,0.22467284]
[1754262498226,0.98392499,114590.0,114580.0,0.22467284]
[1754262498669,0.98392499,114590.0,114580.0,0.09067284]
[1754262499087,0.98392499,114590.0,114580.0,0.22463284]
[1754262501129,0.98392499,114590.0,114580.0,0.09067284]
[1754262501357,0.98392499,114590.0,114580.0,0.22467284]
[1754262502267,0.76857992,114590.0,114580.0,0.22467284]
[1754262502511,0.39692597,114590.0,114580.0,0.22467284]
[1754262502669,0.98372599,114590.0,114580.0,0.22467284]
[1754262502893,0.98372599,114590.0,114580.0,0.25533284]
[1754262503757,0.98372599,114590.0,114580.0,0.25735284]
[1754262504169,0.98372522,114590.0,114580.0,0.25735284]
[1754262505431,0.95917572,114590.0,114580.0,0.25533284]
[1754262509189,0.3723757,114590.0,114580.0,0.25533284]
[1754262509390,0.95917572,114590.0,114580.0,0.25533284]
[1754262510139,0.95917572,114590.0,114580.0,0.25735284]
[1754262510339,0.95304002,114590.0,114580.0,0.25735284]
[1754262512281,0.95304002,114590.0,114580.0,0.25533284]
[1754262513908,0.95304002,114590.0,114580.0,0.25735284]
[1754262516407,0.36624,114590.0,114580.0,0.25735284]
[1754262520386,0.95304002,114590.0,114580.0,0.25735284]
[1754262520800,0.36624,114590.0,114580.0,0.25735284]
[1754262521448,0.95304002,114590.0,114580.0,0.25735284]
[1754262522838,0.36624,114590.0,114580.0,0.25735284]
[1754262527945,0.95304002,114590.0,114580.0,0.25735284]
[1754262528843,0.36624,114590.0,114580.0,0.25735284]
[1754262529682,0.95304002,114590.0,114580.0,0.25735284]
[1754262533833,0.36624,114590.0,114580.0,0.25735284]
[1754262534051,0.95304002,114590.0,114580.0,0.25735284]
[1754262534887,0.36624,114590.0,114580.0,0.25735284]
[1754262544718,0.86060922,114590.0,114580.0,0.25735284]
[1754262545837,0.36624,114590.0,114580.0,0.25735284]
[1754262546031,0.86060922,114590.0,114580.0,0.25735284]
[1754262547092,0.36624,114590.0,114580.0,0.25735284]
[1754262547752,0.36624,114590.0,114580.0,0.75172206]
[1754262548857,0.36624,114590.0,114580.0,0.25735284]
[1754262549503,0.86060922,114590.0,114580.0,0.12335284]
[1754262549767,0.36624,114590.0,114580.0,0.25763284]
[1754262549988,0.86060922,114590.0,114580.0,0.25763284]
[1754262550621,0.36624,114590.0,114580.0,0.25763284]
[1754262550835,0.86060922,114590.0,114580.0,0.25763284]
[1754262551259,0.36624,114590.0,114580.0,0.25763284]
[1754262551463,0.86060922,114590.0,114580.0,0.25763284]
[1754262551750,0.86060922,114590.0,114580.0,0.22531284]
[1754262551953,0.9183705,114590.0,114580.0,0.22535284]
[1754262552163,0.88879463,114590.0,114580.0,0.22535284]
[1754262552368,0.86071922,114590.0,114580.0,0.22535284]
[1754262552847,0.80591321,114590.0,114580.0,0.22535284]
[1754262553061,0.36624,114590.0,114580.0,0.22535284]
[1754262553283,0.80580321,114590.0,114580.0,0.22535284]
[1754262553491,0.80580321,114590.0,114580.0,0.25344284]
[1754262553985,0.80580321,114590.0,114580.0,0.11876284]
[1754262554412,0.80580321,114590.0,114580.0,0.25356284]
[1754262554836,0.80580321,114590.0,114580.0,0.25552284]
[1754262555502,0.36624,114590.0,114580.0,0.25552284]
[1754262555710,0.80580321,114590.0,114580.0,0.25552284]
[1754262556527,0.36624,114590.0,114580.0,0.25552284]
[1754262556717,0.80580321,114590.0,114580.0,0.25552284]
[1754262558196,0.80580321,114590.0,114580.0,0.25544284]
[1754262558410,0.80580321,114590.0,114580.0,0.25548284]
[1754262562380,0.80580321,114590.0,114580.0,0.28178867]
[1754262574666,0.86067924,114590.0,114580.0,0.28178867]
[1754262574999,0.86067924,114590.0,114580.0,0.28158867]
[1754262576953,0.86067924,114590.0,114580.0,0.25528284]
[1754262581468,0.86067924,114590.0,114580.0,0.28117914]
[1754262584768,0.36624,114590.0,114580.0,0.28117914]
[1754262585008,0.86067924,114590.0,114580.0,0.28117914]
[1754262585394,0.88875465,114590.0,114580.0,0.25096914]
[1754262585758,0.88875465,114590.0,114580.0,0.11656914]
[1754262585947,0.88875465,114590.0,114580.0,0.25096914]
[1754262586610,0.86067924,114590.0,114580.0,0.25096914]
[1754262586812,0.86067924,114590.0,114580.0,0.27985914]
[1754262589057,0.86067924,114590.0,114580.0,0.14545914]
[1754262589399,0.86067924,114590.0,114580.0,0.27985914]
[1754262590647,0.36624,114590.0,114580.0,0.27985914]
[1754262590821,0.86067924,114590.0,114580.0,0.27985914]
[1754262591068,0.86067924,114590.0,114580.0,0.28181914]
[1754262591251,0.86067924,114590.0,114580.0,0.14741914]
[1754262591475,0.86067924,114590.0,114580.0,0.28173914]
[1754262594806,0.36624,114590.0,114580.0,0.28173914]
[1754262606661,0.36624,114590.0,114580.0,0.90416678]
[1754262606872,0.34,114590.0,114580.0,0.90416678]
[1754262607536,0.34,114590.0,114580.0,0.46378967]
[1754262607743,0.34,114590.0,114580.0,0.90316678]
[1754262607947,0.34,114590.0,114580.0,0.90416678]
[1754262608374,0.34,114590.0,114580.0,0.90716678]
[1754262608578,0.34,114590.0,114580.0,0.73261625]
[1754262608818,0.34,114590.0,114580.0,0.73661625]
[1754262609022,0.17517641,114600.0,114580.0,0.73661625]
[1754262609232,0.14894341,114600.0,114590.0,0.11970453]
[1754262609433,0.14894341,114600.0,114590.0,0.12166453]
[1754262609638,0.17517741,114600.0,114590.0,0.12166453]
[1754262611065,0.20993653,114600.0,114590.0,0.12366453]
[1754262611879,0.20993653,114600.0,114590.0,0.12566453]
[1754262613529,0.64931364,114600.0,114590.0,0.12370453]
[1754262613732,0.64931364,114600.0,114590.0,0.12152284]
[1754262614579,0.98931364,114600.0,114590.0,0.25372284]
[1754262614784,0.98931364,114600.0,114590.0,0.11952284]
[1754262614997,0.98931364,114600.0,114590.0,0.25172284]
[1754262615206,0.98931364,114600.0,114590.0,0.25372284]
[1754262617041,0.98931364,114600.0,114590.0,0.11952284]
[1754262617239,0.98931364,114600.0,114590.0,0.25368284]
[1754262617447,0.54993653,114600.0,114590.0,0.25368284]
[1754262617647,0.98931364,114600.0,114590.0,0.25368284]
[1754262618703,1.01738905,114600.0,114590.0,0.22479284]
[1754262618909,0.98931364,114600.0,114590.0,0.22479284]
[1754262619357,0.98931364,114600.0,114590.0,0.25555284]
[1754262620077,0.98931364,114600.0,114590.0,0.25559284]
[1754262620078,0.54993653,114600.0,114590.0,0.25559284]
[1754262620419,0.98931364,114600.0,114590.0,0.25559284]
[1754262620604,0.54993653,114600.0,114590.0,0.25559284]
[1754262620748,0.98931364,114600.0,114590.0,0.25559284]
[1754262624376,0.20993653,114600.0,114590.0,0.25760284]
[1754262624595,0.64931364,114600.0,114590.0,0.25760284]
[1754262625308,0.64931364,114600.0,114590.0,0.25764284]
[1754262626659,0.704279,114600.0,114590.0,0.25764284]
[1754262631602,0.20993653,114600.0,114590.0,0.25764284]
[1754262631835,0.704279,114600.0,114590.0,0.25764284]
[1754262632514,0.20993653,114600.0,114590.0,0.25764284]
[1754262632747,0.704279,114600.0,114590.0,0.25764284]
[1754262633583,0.20993653,114600.0,114590.0,0.25764284]
[1754262633789,0.704279,114600.0,114590.0,0.25764284]
[1754262634834,0.20993653,114600.0,114590.0,0.25764284]
[1754262635036,0.704279,114600.0,114590.0,0.25764284]
[1754262639515,0.20993653,114600.0,114590.0,0.25764284]
[1754262639725,0.704279,114600.0,114590.0,0.25764284]
[1754262639915,0.4659221,114600.0,114590.0,0.25764284]
[1754262640364,0.4921571,114600.0,114590.0,0.25764284]
[1754262641125,0.026235,114600.0,114590.0,0.25764284]
[1754262641329,0.52057747,114600.0,114590.0,0.25764284]
[1754262644115,0.55123878,114600.0,114590.0,0.25764284]
[1754262645694,0.55123878,114600.0,114590.0,0.12344284]
[1754262645903,0.55123878,114600.0,114590.0,0.25748284]
[1754262647599,0.05689631,114600.0,114590.0,0.25748284]
[1754262647806,0.55123878,114600.0,114590.0,0.25748284]
[1754262650296,0.05689631,114600.0,114590.0,0.25748284]
[1754262650509,0.55123878,114600.0,114590.0,0.25748284]
[1754262651867,0.05689631,114600.0,114590.0,0.25748284]
[1754262652100,0.55123878,114600.0,114590.0,0.25748284]
[1754262654758,0.05689631,114600.0,114590.0,0.25748284]
[1754262655096,0.55123878,114600.0,114590.0,0.25748284]
[1754262655518,0.05689631,114600.0,114590.0,0.25748284]
[1754262655689,0.52057747,114600.0,114590.0,0.25748284]
[1754262656360,0.5500936,114600.0,114590.0,0.25748284]
[1754262657968,0.05575113,114600.0,114590.0,0.25748284]
[1754262658192,0.5500936,114600.0,114590.0,0.25748284]
[1754262660585,0.05575113,114600.0,114590.0,0.25748284]
[1754262660791,0.5500936,114600.0,114590.0,0.25748284]
[1754262662455,0.05575113,114600.0,114590.0,0.25748284]
[1754262662668,0.5500936,114600.0,114590.0,0.25748284]
[1754262663310,0.05575113,114600.0,114590.0,0.25748284]
[1754262663532,0.5500936,114600.0,114590.0,0.25748284]
[1754262665656,0.05575113,114600.0,114590.0,0.26598284]
[1754262665901,0.5500936,114600.0,114590.0,0.26598284]
[1754262670647,0.05575113,114600.0,114590.0,0.26598284]
[1754262670841,0.5500936,114600.0,114590.0,0.26598284]
[1754262675181,0.05575113,114600.0,114590.0,0.26598284]
[1754262675377,0.5500936,114600.0,114590.0,0.26598284]
[1754262676971,0.5500936,114600.0,114590.0,0.12993284]
[1754262677185,1.38464607,114600.0,114590.0,0.09917284]
[1754262677396,1.38464607,114600.0,114590.0,0.23321284]
[1754262677397,1.47112811,114600.0,114590.0,0.23321284]
[1754262677600,1.39058052,114600.0,114590.0,0.09917284]
[1754262677809,1.39079052,114600.0,114590.0,0.23321284]
[1754262678024,1.39078811,114600.0,114590.0,0.23321284]
[1754262680321,1.38464607,114600.0,114590.0,0.23321284]
[1754262682393,5.32462892,114600.0,114590.0,0.00204]
[1754262682602,5.37686351,114600.0,114590.0,0.13608]
[1754262682810,5.37686351,114600.0,114590.0,0.00204]
[1754262683021,5.37686351,114600.0,114590.0,0.13608]
[1754262683194,5.34917931,114600.0,114590.0,0.13608]
[1754262683833,5.34917237,114600.0,114590.0,0.13608]
[1754262683980,5.34917237,114600.0,114590.0,0.13508]
[1754262684405,5.34917237,114600.0,114590.0,0.13408]
[1754262687615,5.39430559,114600.0,114590.0,4e-05]
[1754262687810,5.39430559,114600.0,114590.0,0.13408]
[1754262688917,4.79075512,114600.0,114590.0,0.13408]
[1754262689560,4.78901003,114600.0,114590.0,0.13408]
[1754262690824,4.76307092,114600.0,114590.0,0.13408]
[1754262692547,4.76302829,114600.0,114590.0,0.13408]
[1754262695424,4.76302617,114600.0,114590.0,0.13408]
[1754262697729,4.79071037,114600.0,114590.0,0.13408]
[1754262700037,4.79071037,114600.0,114590.0,4e-05]
[1754262702915,4.87934321,114600.0,114590.0,4e-05]
[1754262703340,5.32304321,114600.0,114590.0,4e-05]
[1754262704410,4.44335627,114600.0,114590.0,4e-05]
[1754262704621,5.29514901,114600.0,114590.0,0.02736]
[1754262704820,5.17844076,114600.0,114590.0,0.03247]
[1754262706195,4.72125327,114600.0,114590.0,0.03247]
[1754262706398,5.16099174,114600.0,114590.0,0.03247]
[1754262706951,5.18906715,114600.0,114590.0,0.03247]
[1754262707155,5.16099174,114600.0,114590.0,0.03247]
[1754262707331,5.16101852,114600.0,114590.0,0.03247]
[1754262707732,5.18909393,114600.0,114590.0,0.03247]
[1754262709904,5.21494386,114600.0,114590.0,0.03247]
[1754262710302,5.21494388,114600.0,114590.0,0.03247]
[1754262712125,5.23381224,114600.0,114590.0,0.03247]
[1754262712577,5.21494388,114600.0,114590.0,0.03247]
[1754262713088,5.20676415,114600.0,114590.0,0.03247]
[1754262713230,5.2149957,114600.0,114590.0,0.03247]
[1754262716062,5.21499754,114600.0,114590.0,0.03247]
[1754262720682,1.33575666,114600.0,114590.0,0.03247]
[1754262721153,0.89205666,114600.0,114590.0,0.03247]
[1754262721391,0.89205854,114600.0,114590.0,0.03247]
[1754262722118,0.86620861,114600.0,114590.0,0.12110284]
[1754262727088,0.08647014,114600.0,114590.0,0.12110284]
[1754262727343,0.06189499,114600.0,114590.0,0.12328453]
[1754262727550,0.05575113,114600.0,114590.0,0.12328453]
[1754262730667,0.4954896,114600.0,114590.0,0.12328453]
[1754262730883,0.4954896,114600.0,114590.0,0.12110284]
[1754262731316,0.44013847,114610.0,114590.0,0.12110284]
[1754262731524,0.780186,114610.0,114600.0,0.22335284]
[1754262731733,0.780186,114610.0,114600.0,0.25279284]
[1754262732584,0.8163987,114610.0,114600.0,0.25279284]
[1754262733439,0.8426337,114610.0,114600.0,0.25279284]
[1754262733692,0.40289523,114610.0,114600.0,0.25279284]
[1754262733891,0.8426337,114610.0,114600.0,0.25279284]
[1754262736240,0.40289523,114610.0,114600.0,0.25279284]
[1754262736436,0.8426337,114610.0,114600.0,0.11807284]
[1754262736651,0.87070911,114610.0,114600.0,0.22327284]
[1754262737697,0.87070911,114610.0,114600.0,0.24765284]
[1754262738543,0.8426337,114610.0,114600.0,0.24765284]
[1754262739171,0.84875867,114610.0,114600.0,0.24765284]
[1754262739375,0.84875867,114610.0,114600.0,0.22327284]
[1754262739807,0.84875867,114610.0,114600.0,0.22319284]
[1754262740023,0.84875867,114610.0,114600.0,0.24757284]
[1754262740253,0.84875867,114610.0,114600.0,0.25263284]
[1754262740481,0.40902091,114610.0,114600.0,0.25263284]
[1754262740727,0.8426337,114610.0,114600.0,0.25263284]
[1754262742294,0.40902181,114610.0,114600.0,0.25263284]
[1754262742518,0.84876028,114610.0,114600.0,0.25263284]
[1754262743563,0.84876028,114610.0,114600.0,0.25051284]
[1754262744408,0.84876028,114610.0,114600.0,0.25263284]
[1754262746379,0.85693346,114610.0,114600.0,0.25263284]
[1754262747445,0.87328239,114610.0,114600.0,0.25263284]
[1754262748236,0.87328239,114610.0,114600.0,0.11807284]
[1754262748463,0.87328239,114610.0,114600.0,0.25259284]
[1754262750344,0.87329843,114610.0,114600.0,0.25259284]
[1754262755315,0.53289843,114610.0,114600.0,0.25259284]
[1754262757091,0.53289843,114610.0,114600.0,0.02438]
[1754262757263,1.03031716,114610.0,114600.0,0.15882]
[1754262757464,1.03031716,114610.0,114590.0,0.00298]
[1754262757465,1.03031716,114610.0,114590.0,0.02736]
[1754262757690,4.31897935,114600.0,114590.0,4e-05]
[1754262757828,4.37924893,114600.0,114590.0,0.13452]
[1754262758673,4.73669795,114600.0,114590.0,4e-05]
[1754262758888,4.73669795,114600.0,114590.0,0.13448]
[1754262760893,4.7084131,114600.0,114590.0,0.13448]
[1754262761510,4.7084131,114600.0,114590.0,4e-05]
[1754262761724,4.7084131,114600.0,114590.0,0.13448]
[1754262762211,4.72208579,114600.0,114590.0,0.13448]
[1754262762629,4.74832979,114600.0,114590.0,0.13448]
[1754262763507,4.74700979,114600.0,114590.0,0.13448]
[1754262763941,4.70148536,114600.0,114590.0,0.16747]
[1754262764149,4.26174689,114600.0,114590.0,0.16747]
[1754262764816,0.85031989,114600.0,114590.0,0.16747]
[1754262765676,0.51031989,114600.0,114590.0,0.16747]
[1754262765911,0.8366577,114600.0,114590.0,0.16747]
[1754262768983,0.85031908,114600.0,114590.0,0.16747]
[1754262772442,1.29005755,114600.0,114590.0,0.16747]
[1754262779730,1.29006602,114600.0,114590.0,0.16747]
[1754262779927,1.26551737,114600.0,114590.0,0.16747]
[1754262780134,1.29005758,114600.0,114590.0,0.16747]
[1754262782569,0.85031911,114600.0,114590.0,0.16747]
[1754262783799,1.29005758,114600.0,114590.0,0.16747]
[1754262789981,0.85031911,114600.0,114590.0,0.16747]
[1754262794384,0.85031911,114600.0,114590.0,0.25610284]
[1754262794932,0.83665773,114600.0,114590.0,0.25610284]
[1754262799179,1.2763962,114600.0,114590.0,0.25610284]
[1754262804375,1.27640825,114600.0,114590.0,0.25610284]
[1754262804596,1.27640825,114600.0,114590.0,0.25376284]
[1754262805278,1.27640825,114600.0,114590.0,0.22279284]
[1754262805943,1.29006954,114600.0,114590.0,0.22279284]
[1754262806150,1.29006954,114600.0,114590.0,0.24822284]
[1754262806780,1.29006954,114600.0,114590.0,0.25135284]
[1754262807142,1.27640825,114600.0,114590.0,0.25135284]
[1754262810421,1.29006954,114600.0,114590.0,0.25135284]
[1754262813242,1.29006954,114600.0,114590.0,0.25342284]
[1754262814736,1.2900953,114600.0,114590.0,0.25342284]
[1754262817906,0.85036651,114600.0,114590.0,0.25342284]
[1754262818126,0.83670522,114600.0,114590.0,0.25342284]
[1754262820392,1.27644369,114600.0,114590.0,0.25342284]
[1754262821322,1.27644369,114600.0,114590.0,0.25135284]
[1754262821575,4.74555095,114600.0,114590.0,0.13412]
[1754262821804,4.74555095,114600.0,114590.0,0.15963]
[1754262822004,4.74555095,114600.0,114590.0,0.16286]
[1754262822376,4.75921209,114600.0,114590.0,0.16286]
[1754262822602,4.72960724,114600.0,114590.0,0.16286]
[1754262824163,4.70153183,114600.0,114590.0,0.16286]
[1754262832414,4.67080908,114600.0,114590.0,0.16286]
[1754262832623,4.70153067,114600.0,114590.0,0.16286]
[1754262836785,4.81115597,114600.0,114590.0,0.16286]
[1754262839875,4.80296355,114600.0,114590.0,0.16286]